fUST/lending_fUST_20250804
["ID","MTS","AMOUNT","RATE_DAILY","PERIOD"]
[377257426,1754307042302,-1317.98,0.00034336,2]
[377257427,1754307042312,-774.01,0.00034336,2]
[377257428,1754307042322,-781.04,0.00034336,2]
[377257429,1754307042331,-678.91,0.00034336,2]
[377257430,1754307042341,-1272.59,0.00034336,2]
[377257431,1754307042352,-633.62,0.00034408,2]
[377257432,1754307042361,-607.22,0.00034408,2]
[377257433,1754307042372,-1064.31,0.00034408,2]
[377257434,1754307042382,-462.66,0.00034408,2]
[377257435,1754307042392,-460.0,0.00034408,2]
[377257436,1754307042401,-460.0,0.00034408,2]
[377257437,1754307042412,-5204.75,0.00034408,2]
[377257438,1754307042421,-460.0,0.00034408,2]
[377257439,1754307042431,-828.51,0.00034408,2]
[377257440,1754307042441,-460.0,0.00034408,2]
[377257441,1754307042451,-712.28,0.00034408,2]
[377257442,1754307042461,-12779.24,0.00034408,2]
[377257443,1754307042471,-1146.78,0.00034408,2]
[377257444,1754307042481,-661.39,0.00034408,2]
[377257445,1754307042491,-479.76,0.00034408,2]
[377257446,1754307042501,-1158.97,0.00034408,2]
[377257447,1754307042511,-1681.31,0.00034408,2]
[377257449,1754307042521,-460.0,0.00034408,2]
[377257451,1754307042532,-943.85,0.00034408,2]
[377257453,1754307042543,-579.45,0.00034408,2]
[377257455,1754307042552,-460.0,0.00034408,2]
[377257457,1754307042562,-553.73,0.00034408,2]
[377257459,1754307042573,-1000.0,0.00034428,5]
[377257461,1754307042584,-370.0,0.00034429,120]
[377257463,1754307042595,-822.37,0.00034435,2]
[377257465,1754307042605,-5034.96,0.00034435,2]
[377257467,1754307042615,-601.46,0.00034435,2]
[377257469,1754307042625,-370.0,0.00034439,120]
[377257472,1754307042635,-370.0,0.00034449,120]
[377257474,1754307042646,-370000.0,0.00034469,2]
[377257475,1754307042659,-151.957019,0.00034469,14]
[377257477,1754307042669,-165.576034,0.00034469,14]
[377257480,1754307042681,-165.576034,0.00034469,14]
[377257482,1754307042691,-151.0,0.00034469,14]
[377257483,1754307042703,-151.0,0.00034469,14]
[377257485,1754307042714,-151.0,0.00034469,14]
[377257487,1754307042726,-151.0,0.00034469,14]
[377257489,1754307042738,-151.0,0.00034469,14]
[377257491,1754307042747,-151.0,0.00034469,14]
[377257493,1754307042757,-151.0,0.00034469,14]
[377257495,1754307042768,-190.244408,0.00034469,14]
[377257497,1754307042778,-190.244408,0.00034469,14]
[377257499,1754307042789,-262.469383,0.00034469,14]
[377257501,1754307042799,-262.469383,0.00034469,14]
[377257503,1754307042808,-151.0,0.00034469,14]
[377257505,1754307042819,-240.863772,0.00034469,14]
[377257507,1754307042829,-166.20994,0.00034469,14]
[377257509,1754307042839,-166.20994,0.00034469,14]
[377257511,1754307042850,-1000.0,0.00034471,5]
[377257513,1754307042861,-383.05747136,0.00034473,5]
[377257515,1754307042872,-500.0,0.00034473,5]
[377257517,1754307042882,-293.01237011,0.00034473,5]
[377257519,1754307042892,-500.0,0.00034473,5]
[377257521,1754307042902,-150.0,0.00034473,5]
[377257523,1754307042913,-500.0,0.00034473,5]
[377257525,1754307042923,-500.0,0.00034473,5]
[377257527,1754307042933,-500.0,0.00034473,5]
[377257529,1754307042944,-372.83764077,0.00034473,5]
[377257531,1754307042955,-500.0,0.00034473,5]
[377257533,1754307042965,-500.0,0.00034473,5]
[377257535,1754307042977,-500.0,0.00034473,5]
[377257537,1754307042987,-500.0,0.00034473,5]
[377257539,1754307042997,-500.0,0.00034473,5]
[377257541,1754307043006,-500.0,0.00034473,5]
[377257543,1754307043016,-500.0,0.00034473,5]
[377257545,1754307043026,-500.0,0.00034473,5]
[377257547,1754307043037,-500.0,0.00034473,2]
[377257549,1754307043047,-500.0,0.00034473,5]
[377257551,1754307043057,-800.7,0.00034493,2]
[377257553,1754307043068,-899.5,0.00034493,2]
[377257556,1754307043078,-2915.95,0.00034493,2]
[377257559,1754307043088,-460.0,0.00034493,2]
[377257563,1754307043102,-622.71,0.00034493,2]
[377257567,1754307043113,-2632.88,0.00034493,2]
[377257570,1754307043123,-460.0,0.00034493,2]
[377257572,1754307043132,-460.0,0.00034509,2]
[377257574,1754307043142,-460.0,0.00034509,2]
[377257575,1754307043152,-460.0,0.00034509,2]
[377257578,1754307043162,-460.0,0.00034509,2]
[377257580,1754307043172,-460.0,0.00034509,2]
[377257582,1754307043182,-796.57,0.00034509,2]
[377257584,1754307043192,-838.57,0.00034509,2]
[377257586,1754307043202,-460.0,0.00034509,2]
[377257588,1754307043212,-580.22,0.00034509,2]
[377257590,1754307043223,-460.0,0.00034509,2]
[377257592,1754307043232,-460.0,0.00034509,2]
[377257593,1754307043241,-638.8,0.00034509,2]
[377257595,1754307043250,-486.63,0.00034509,2]
[377257597,1754307043260,-779.46,0.00034509,2]
[377257599,1754307043270,-1618.74,0.00034509,2]
[377257601,1754307043279,-460.0,0.00034509,2]
[377257603,1754307043288,-1885.43,0.00034509,2]
[377257605,1754307043298,-460.0,0.00034509,2]
[377257607,1754307043307,-776.69,0.00034509,2]
[377257609,1754307043317,-4309.37,0.00034509,2]
[377257611,1754307043326,-700.46,0.00034509,2]
[377257613,1754307043336,-460.0,0.00034509,2]
[377257615,1754307043345,-2348.3,0.00034509,2]
[377257617,1754307043355,-460.0,0.00034509,2]
[377257619,1754307043364,-5373.39,0.00034514,2]
[377257621,1754307043374,-685.07,0.00034514,2]
[377257623,1754307043384,-2827.23,0.00034514,2]
[377257625,1754307043393,-543.42,0.00034514,2]
[377257627,1754307043402,-2216.52,0.00034514,2]
[377257629,1754307043412,-460.0,0.00034514,2]
[377257631,1754307043421,-772.58,0.00034514,2]
[377257633,1754307043430,-460.0,0.00034514,2]
[377257635,1754307043439,-772.58,0.00034515,2]
[377257637,1754307043449,-460.0,0.00034516,2]
[377257639,1754307043458,-500.68,0.00034516,2]
[377257641,1754307043467,-883.57,0.00034516,2]
[377257643,1754307043477,-547.96,0.00034516,2]
[377257645,1754307043486,-460.0,0.00034516,2]
[377257647,1754307043496,-944.0,0.00034516,2]
[377257649,1754307043505,-460.0,0.00034516,2]
[377257651,1754307043515,-1379.93,0.00034516,2]
[377257653,1754307043524,-460.0,0.00034516,2]
[377257655,1754307043533,-1424.05,0.00034516,2]
[377257657,1754307043543,-460.0,0.00034516,2]
[377257659,1754307043552,-1424.68,0.00034516,2]
[377257661,1754307043561,-619.52,0.00034516,2]
[377257663,1754307043570,-460.0,0.00034516,2]
[377257665,1754307043579,-610.65,0.00034516,2]
[377257667,1754307043589,-460.0,0.00034516,2]
[377257669,1754307043598,-460.0,0.00034516,2]
[377257671,1754307043607,-460.0,0.00034516,2]
[377257682,1754307043711,-471.31358379,0.00034516,2]
[377257684,1754307043721,-460.0,0.00034516,2]
[377257686,1754307043732,-460.0,0.00034516,2]
[377257688,1754307043743,-460.0,0.00034516,2]
[377257690,1754307043752,-460.0,0.00034516,2]
[377257692,1754307043761,-460.0,0.00034516,2]
[377257694,1754307043771,-460.0,0.00034516,2]
[377257696,1754307043781,-460.0,0.00034516,2]
[377257698,1754307043791,-1439.76,0.00034516,2]
[377257700,1754307043800,-1081.16,0.00034516,2]
[377257702,1754307043810,-471.13,0.00034516,2]
[377257704,1754307043820,-739.95,0.00034516,2]
[377257706,1754307043829,-500.0,0.00034516,2]
[377257708,1754307043839,-460.0,0.00034516,2]
[377257710,1754307043848,-464.95034338,0.00034516,2]
[377257712,1754307043858,-1467.46,0.00034516,2]
[377257714,1754307043867,-460.0,0.00034516,2]
[377257716,1754307043877,-743.14,0.00034516,2]
[377257718,1754307043886,-460.0,0.00034516,2]
[377257720,1754307043895,-1185.52,0.00034516,2]
[377257722,1754307043905,-460.0,0.00034516,2]
[377257724,1754307043914,-589.66,0.00034516,2]
[377257726,1754307043923,-325.1100594,0.00034516,2]
[377257728,1754307043933,-460.0,0.00034516,2]
[377257730,1754307043942,-461.84903361,0.00034516,2]
[377257732,1754307043952,-460.0,0.00034516,2]
[377257734,1754307043961,-500.0,0.00034516,2]
[377257736,1754307043971,-500.0,0.00034516,2]
[377257738,1754307043980,-460.0,0.00034516,2]
[377257740,1754307043989,-814.1,0.00034516,2]
[377257742,1754307043999,-460.0,0.00034516,2]
[377257744,1754307044009,-460.0,0.00034516,2]
[377257746,1754307044018,-650.89,0.00034516,2]
[377257748,1754307044028,-500.0,0.00034518,2]
[377257750,1754307044038,-1000.0,0.00034521,5]
[377257752,1754307044047,-2308.14123352,0.00034521,31]
[377257754,1754307044057,-460.0,0.00034537,2]
[377257756,1754307044066,-600.49,0.00034537,2]
[377257757,1754307044075,-460.0,0.00034537,2]
[377257759,1754307044084,-460.0,0.00034537,2]
[377257761,1754307044094,-460.0,0.00034537,2]
[377257763,1754307044104,-460.0,0.00034537,2]
[377257765,1754307044114,-460.0,0.00034537,2]
[377257767,1754307044124,-460.0,0.00034537,2]
[377257769,1754307044133,-460.0,0.00034537,2]
[377257771,1754307044142,-460.0,0.00034537,2]
[377257773,1754307044152,-459.99661894,0.00034537,2]
[377257775,1754307044161,-460.0,0.00034537,2]
[377257777,1754307044170,-326.61294521,0.00034537,2]
[377257779,1754307044179,-710.49,0.00034537,2]
[377257781,1754307044188,-460.0,0.00034537,2]
[377257783,1754307044197,-460.0,0.00034537,2]
[377257785,1754307044206,-460.0,0.00034537,2]
[377257787,1754307044216,-460.0,0.00034537,2]
[377257789,1754307044225,-460.0,0.00034537,2]
[377257791,1754307044234,-502.15,0.00034537,2]
[377257793,1754307044244,-460.0,0.00034537,2]
[377257795,1754307044253,-460.0,0.00034537,2]
[377257797,1754307044262,-573.318853,0.00034537,2]
[377257798,1754307044271,-460.0,0.00034537,2]
[377257800,1754307044280,-460.0,0.00034537,2]
[377257802,1754307044289,-460.0,0.00034537,2]
[377257804,1754307044299,-460.0,0.00034537,2]
[377257806,1754307044309,-460.0,0.00034537,2]
[377257808,1754307044318,-460.0,0.00034537,2]
[377257810,1754307044327,-252.80958878,0.00034537,2]
[377257812,1754307044336,-460.0,0.00034537,2]
[377257814,1754307044346,-460.0,0.00034537,2]
[377257816,1754307044355,-463.99405965,0.00034537,2]
[377257818,1754307044365,-501.24,0.00034537,2]
[377257820,1754307044374,-968.61,0.00034537,2]
[377257822,1754307044384,-460.0,0.00034537,2]
[377257824,1754307044394,-460.0,0.00034537,2]
[377257826,1754307044403,-460.0,0.00034537,2]
[377257828,1754307044412,-460.0,0.00034537,2]
[377257830,1754307044422,-2255.56,0.00034537,2]
[377257832,1754307044431,-468.52128178,0.00034537,2]
[377257834,1754307044440,-1911.53,0.00034537,2]
[377257836,1754307044449,-460.0,0.00034537,2]
[377257838,1754307044459,-460.0,0.00034537,2]
[377257840,1754307044468,-975.57,0.00034537,2]
[377257842,1754307044477,-349.64422867,0.00034537,2]
[377257844,1754307044486,-460.0,0.00034537,2]
[377257846,1754307044495,-504.77748823,0.00034537,2]
[377257848,1754307044505,-556.89,0.00034537,2]
[377257850,1754307044514,-460.0,0.00034537,2]
[377257852,1754307044523,-12560.16,0.00034537,2]
[377257854,1754307044533,-460.0,0.00034537,2]
[377257856,1754307044542,-471.49176584,0.00034537,2]
[377257858,1754307044552,-1006.04,0.00034537,2]
[377257860,1754307044562,-1293.99,0.00034537,2]
[377257862,1754307044571,-460.0,0.00034537,2]
[377257864,1754307044581,-772.58,0.00034568,2]
[377257866,1754307044591,-7547.97531318,0.00034582,2]
[377257868,1754307044600,-33983.58,0.000346,14]
[377257870,1754307044611,-151.0,0.000346,14]
[377257872,1754307044620,-460.0,0.0003461,2]
[377257874,1754307044631,-1432.61,0.0003461,2]
[377257876,1754307044641,-1331.63,0.0003461,2]
[377257879,1754307044654,-2437.61,0.0003461,2]
[377257881,1754307044665,-460.0,0.0003461,2]
[377257883,1754307044675,-576.18,0.0003461,2]
[377257885,1754307044685,-484.84,0.0003461,2]
[377257887,1754307044694,-1032.38,0.0003461,2]
[377257889,1754307044704,-800.71,0.0003461,2]
[377257891,1754307044713,-574.43,0.0003461,2]
[377257893,1754307044723,-602.09,0.0003461,2]
[377257895,1754307044733,-1927.17,0.0003461,2]
[377257896,1754307044742,-460.0,0.0003461,2]
[377257898,1754307044752,-1361.43,0.0003461,2]
[377257901,1754307044762,-1317.98,0.0003461,2]
[377257902,1754307044771,-774.01,0.0003461,2]
[377257904,1754307044781,-781.04,0.0003461,2]
[377257906,1754307044791,-678.91,0.0003461,2]
[377257908,1754307044801,-1272.59,0.0003461,2]
[377257910,1754307044810,-200.0,0.00034656,120]
[377257912,1754307044820,-633.62,0.00034682,2]
[377257914,1754307044830,-607.22,0.00034682,2]
[377257917,1754307044839,-152.03939,0.00034682,14]
[377257919,1754307044849,-151.0,0.00034682,14]
[377257921,1754307044859,-1064.31,0.00034682,2]
[377257923,1754307044868,-462.66,0.00034682,2]
[377257925,1754307044877,-460.0,0.00034682,2]
[377257927,1754307044887,-152.90069,0.00034682,14]
[377257929,1754307044896,-460.0,0.00034682,2]
[377257931,1754307044906,-5204.75,0.00034682,2]
[377257932,1754307044915,-460.0,0.00034682,2]
[377257934,1754307044925,-151.0,0.00034682,14]
[377257935,1754307044935,-828.51,0.00034682,2]
[377257936,1754307044945,-151.0,0.00034682,14]
[377257937,1754307044954,-460.0,0.00034682,2]
[377257938,1754307044964,-151.0,0.00034682,14]
[377257939,1754307044973,-712.28,0.00034682,2]
[377257940,1754307044982,-190.244408,0.00034682,14]
[377257941,1754307044992,-190.244408,0.00034682,14]
[377257942,1754307045001,-12779.24,0.00034682,2]
[377257944,1754307045011,-1146.78,0.00034682,2]
[377257946,1754307045021,-262.469383,0.00034682,14]
[377257948,1754307045030,-661.39,0.00034682,2]
[377257950,1754307045040,-262.469383,0.00034682,14]
[377257952,1754307045049,-479.76,0.00034682,2]
[377257954,1754307045059,-1158.97,0.00034682,2]
[377257956,1754307045068,-1681.31,0.00034682,2]
[377257958,1754307045077,-460.0,0.00034682,2]
[377257960,1754307045087,-943.85,0.00034682,2]
[377257962,1754307045099,-579.45,0.00034682,2]
[377257964,1754307045108,-460.0,0.00034682,2]
[377257966,1754307045117,-166.20994,0.00034682,14]
[377257968,1754307045126,-166.20994,0.00034682,14]
[377257970,1754307045135,-553.73,0.00034682,2]
[377257972,1754307045144,-260.0,0.00034685,2]
[377257974,1754307045157,-151.0,0.00034709,14]
[377257976,1754307045166,-165.576034,0.00034709,14]
[377257978,1754307045176,-165.576034,0.00034709,14]
[377257980,1754307045185,-151.0,0.00034709,14]
[377257982,1754307045194,-822.37,0.00034709,2]
[377257984,1754307045204,-5034.96,0.00034709,2]
[377257986,1754307045213,-601.46,0.00034709,2]
[377257988,1754307045222,-2308.14123352,0.00034728,31]
[377257991,1754307045232,-800.7,0.00034767,2]
[377257993,1754307045242,-899.5,0.00034767,2]
[377257995,1754307045251,-2915.95,0.00034767,2]
[377257997,1754307045262,-480.57326795,0.00034767,2]
[377257999,1754307045272,-622.71,0.00034767,2]
[377258001,1754307045282,-2632.88,0.00034767,2]
[377258003,1754307045291,-460.0,0.00034767,2]
[377258005,1754307045301,-500.0,0.00034773,5]
[377258007,1754307045310,-168.18530873,0.00034773,5]
[377258009,1754307045320,-500.0,0.00034773,5]
[377258011,1754307045330,-500.0,0.00034773,5]
[377258013,1754307045339,-503.10354664,0.00034773,5]
[377258015,1754307045348,-500.0,0.00034773,5]
[377258017,1754307045357,-500.0,0.00034773,5]
[377258019,1754307045368,-500.0,0.00034773,5]
[377258021,1754307045377,-500.0,0.00034773,5]
[377258023,1754307045386,-157.90205952,0.00034773,5]
[377258025,1754307045396,-500.0,0.00034773,2]
[377258027,1754307045405,-275.49980112,0.00034773,5]
[377258040,1754307045517,-500.0,0.00034773,5]
[377258043,1754307045528,-500.0,0.00034773,5]
[377258045,1754307045538,-502.73213978,0.00034773,5]
[377258047,1754307045547,-500.0,0.00034773,5]
[377258049,1754307045556,-500.0,0.00034773,5]
[377258051,1754307045566,-410.08634479,0.00034773,5]
[377258053,1754307045575,-500.0,0.00034773,5]
[377258055,1754307045584,-501.08011756,0.00034773,5]
[377258057,1754307045593,-502.48038745,0.00034773,5]
[377258059,1754307045603,-150.23222237,0.00034773,5]
[377258061,1754307045612,-151.0,0.00034773,14]
[377258063,1754307045622,-151.0,0.00034773,14]
[377258065,1754307045631,-151.398314,0.00034773,14]
[377258067,1754307045640,-151.0,0.00034783,14]
[377258069,1754307045653,-460.0,0.00034783,2]
[377258071,1754307045663,-460.0,0.00034783,2]
[377258073,1754307045672,-460.0,0.00034783,2]
[377258075,1754307045682,-460.0,0.00034783,2]
[377258077,1754307045691,-460.0,0.00034783,2]
[377258079,1754307045701,-796.57,0.00034783,2]
[377258081,1754307045712,-838.57,0.00034783,2]
[377258083,1754307045723,-460.0,0.00034783,2]
[377258085,1754307045732,-580.22,0.00034783,2]
[377258087,1754307045742,-460.0,0.00034783,2]
[377258089,1754307045751,-460.0,0.00034783,2]
[377258091,1754307045762,-638.8,0.00034783,2]
[377258093,1754307045772,-486.63,0.00034783,2]
[377258095,1754307045782,-779.46,0.00034783,2]
[377258097,1754307045790,-1618.74,0.00034783,2]
[377258099,1754307045800,-418.85076153,0.00034783,2]
[377258101,1754307045810,-1885.43,0.00034783,2]
[377258103,1754307045820,-460.0,0.00034783,2]
[377258105,1754307045829,-776.69,0.00034783,2]
[377258107,1754307045838,-4309.37,0.00034783,2]
[377258109,1754307045847,-700.46,0.00034783,2]
[377258111,1754307045857,-460.0,0.00034783,2]
[377258114,1754307045867,-2348.3,0.00034783,2]
[377258116,1754307045877,-460.0,0.00034783,2]
[377258118,1754307045887,-772.58,0.00034786,2]
[377258120,1754307045897,-151.0,0.00034788,14]
[377258122,1754307045906,-151.0,0.00034788,14]
[377258124,1754307045915,-151.0,0.00034788,14]
[377258126,1754307045925,-151.0,0.00034788,14]
[377258128,1754307045934,-5373.39,0.00034788,2]
[377258130,1754307045945,-685.07,0.00034788,2]
[377258132,1754307045955,-2827.23,0.00034788,2]
[377258134,1754307045964,-543.42,0.00034788,2]
[377258136,1754307045974,-2216.52,0.00034788,2]
[377258138,1754307045983,-460.0,0.00034788,2]
[377258140,1754307045992,-460.0,0.00034788,2]
[377258142,1754307046002,-460.0,0.00034789,2]
[377258144,1754307046011,-278.39,0.00034789,2]
[377258146,1754307046022,-460.0,0.00034789,2]
[377258148,1754307046032,-772.58,0.00034789,2]
[377258150,1754307046047,-460.0,0.0003479,2]
[377258152,1754307046056,-500.68,0.0003479,2]
[377258154,1754307046068,-883.57,0.0003479,2]
[377258156,1754307046078,-547.96,0.0003479,2]
[377258159,1754307046087,-460.0,0.0003479,2]
[377258161,1754307046097,-944.0,0.0003479,2]
[377258163,1754307046107,-460.0,0.0003479,2]
[377258165,1754307046116,-1379.93,0.0003479,2]
[377258166,1754307046125,-489.62915239,0.0003479,2]
[377258169,1754307046135,-1424.05,0.0003479,2]
[377258171,1754307046145,-460.0,0.0003479,2]
[377258172,1754307046156,-1424.68,0.0003479,2]
[377258175,1754307046169,-619.52,0.0003479,2]
[377258177,1754307046178,-460.0,0.0003479,2]
[377258179,1754307046188,-610.65,0.0003479,2]
[377258181,1754307046197,-460.0,0.0003479,2]
[377258183,1754307046207,-460.0,0.0003479,2]
[377258185,1754307046216,-460.0,0.0003479,2]
[377258187,1754307046226,-460.0,0.0003479,2]
[377258189,1754307046236,-460.0,0.0003479,2]
[377258191,1754307046246,-460.0,0.0003479,2]
[377258193,1754307046255,-460.0,0.0003479,2]
[377258195,1754307046265,-586.83665075,0.0003479,2]
[377258197,1754307046274,-460.0,0.0003479,2]
[377258199,1754307046284,-460.0,0.0003479,2]
[377258201,1754307046293,-1439.76,0.0003479,2]
[377258203,1754307046302,-1081.16,0.0003479,2]
[377258204,1754307046311,-471.13,0.0003479,2]
[377258206,1754307046319,-739.95,0.0003479,2]
[377258208,1754307046328,-500.0,0.0003479,2]
[377258210,1754307046338,-1467.46,0.0003479,2]
[377258213,1754307046348,-460.0,0.0003479,2]
[377258215,1754307046358,-743.14,0.0003479,2]
[377258217,1754307046367,-460.0,0.0003479,2]
[377258219,1754307046379,-1185.52,0.0003479,2]
[377258221,1754307046388,-460.0,0.0003479,2]
[377258223,1754307046398,-589.66,0.0003479,2]
[377258225,1754307046407,-460.0,0.0003479,2]
[377258227,1754307046418,-460.0,0.0003479,2]
[377258229,1754307046428,-460.0,0.0003479,2]
[377258231,1754307046438,-814.1,0.0003479,2]
[377258233,1754307046447,-460.0,0.0003479,2]
[377258235,1754307046457,-460.0,0.0003479,2]
[377258237,1754307046466,-650.89,0.0003479,2]
[377258239,1754307046475,-772.58,0.00034792,2]
[377258241,1754307046485,-466.5560086,0.00034793,2]
[377258243,1754307046496,-460.0,0.00034793,2]
[377258245,1754307046504,-469.0001293,0.00034793,2]
[377258247,1754307046513,-316.77183381,0.00034793,2]
[377258249,1754307046523,-1172.13,0.00034793,2]
[377258251,1754307046531,-460.0,0.00034793,2]
[377258253,1754307046540,-460.0,0.00034793,2]
[377258255,1754307046549,-626.74,0.00034793,2]
[377258257,1754307046558,-460.0,0.00034793,2]
[377258259,1754307046567,-972.47,0.00034793,2]
[377258261,1754307046576,-359.53805841,0.00034793,2]
[377258263,1754307046586,-460.0,0.00034793,2]
[377258265,1754307046595,-460.0,0.00034793,2]
[377258267,1754307046604,-460.0,0.00034793,2]
[377258269,1754307046614,-460.0,0.00034793,2]
[377258271,1754307046623,-460.0,0.00034793,2]
[377258273,1754307046632,-460.0,0.00034793,2]
[377258275,1754307046641,-234.94253968,0.00034793,2]
[377258277,1754307046653,-460.0,0.00034793,2]
[377258279,1754307046662,-460.0,0.00034793,2]
[377258281,1754307046672,-460.0,0.00034793,2]
[377258283,1754307046681,-461.59,0.00034793,2]
[377258285,1754307046691,-460.0,0.00034793,2]
[377258287,1754307046701,-460.0,0.00034793,2]
[377258289,1754307046711,-469.12053159,0.00034793,2]
[377258291,1754307046720,-460.0,0.00034793,2]
[377258293,1754307046730,-464.76,0.00034793,2]
[377258295,1754307046739,-460.47170879,0.00034793,2]
[377258297,1754307046749,-460.0,0.00034793,2]
[377258299,1754307046759,-464.74346297,0.00034793,2]
[377258301,1754307046768,-460.0,0.00034793,2]
[377258303,1754307046778,-604.10300304,0.00034793,2]
[377258305,1754307046787,-460.0,0.00034793,2]
[377258307,1754307046796,-460.0,0.00034793,2]
[377258308,1754307046805,-460.0,0.00034793,2]
[377258310,1754307046814,-473.87627565,0.00034793,2]
[377258312,1754307046824,-1000.0,0.00034793,2]
[377258314,1754307046833,-461.09469524,0.00034793,2]
[377258316,1754307046842,-460.0,0.00034793,2]
[377258318,1754307046851,-460.0,0.00034793,2]
[377258320,1754307046860,-460.0,0.00034793,2]
[377258322,1754307046869,-460.0,0.00034793,2]
[377258324,1754307046878,-606.67,0.00034793,2]
[377258326,1754307046887,-460.0,0.00034793,2]
[377258328,1754307046897,-460.0,0.00034793,2]
[377258330,1754307046907,-460.0,0.00034793,2]
[377258332,1754307046916,-460.0,0.00034793,2]
[377258334,1754307046925,-460.0,0.00034793,2]
[377258336,1754307046934,-462.12565283,0.00034793,2]
[377258338,1754307046945,-464.23,0.00034793,2]
[377258340,1754307046954,-460.0,0.00034793,2]
[377258342,1754307046964,-460.34314774,0.00034793,2]
[377258344,1754307046974,-306.63517997,0.00034793,2]
[377258346,1754307046984,-460.0,0.00034793,2]
[377258348,1754307046993,-460.60394074,0.00034793,2]
[377258350,1754307047002,-548.07,0.00034793,2]
[377258352,1754307047011,-460.55427837,0.00034793,2]
[377258354,1754307047020,-460.0,0.00034793,2]
[377258356,1754307047030,-900.42,0.00034793,2]
[377258358,1754307047039,-460.0,0.00034793,2]
[377258360,1754307047048,-460.99718951,0.00034793,2]
[377258362,1754307047057,-549.88,0.00034793,2]
[377258364,1754307047066,-460.0,0.00034793,2]
[377258366,1754307047075,-460.0,0.00034793,2]
[377258368,1754307047084,-460.69223365,0.00034793,2]
[377258379,1754307047093,-460.0,0.00034793,2]
[377258382,1754307047186,-460.0,0.00034793,2]
[377258384,1754307047195,-319.59293917,0.00034793,2]
[377258386,1754307047205,-460.0,0.00034793,2]
[377258388,1754307047214,-460.0,0.00034793,2]
[377258390,1754307047224,-460.0,0.00034793,2]
[377258392,1754307047233,-616.3,0.00034793,2]
[377258394,1754307047242,-461.33030424,0.00034793,2]
[377258396,1754307047250,-460.0,0.00034793,2]
[377258398,1754307047260,-522.83,0.00034793,2]
[377258400,1754307047270,-460.0,0.00034793,2]
[377258402,1754307047279,-460.0,0.00034793,2]
[377258404,1754307047288,-460.0,0.00034793,2]
[377258406,1754307047297,-732.41,0.00034793,2]
[377258408,1754307047306,-460.0,0.00034793,2]
[377258410,1754307047315,-151.0,0.00034793,14]
[377258412,1754307047324,-500.0,0.00034793,2]
[377258414,1754307047333,-460.0,0.00034793,2]
[377258416,1754307047342,-460.0,0.00034793,2]
[377258418,1754307047352,-460.8220755,0.00034793,2]
[377258420,1754307047361,-460.0,0.00034793,2]
[377258422,1754307047370,-460.0,0.00034793,2]
[377258424,1754307047379,-460.0,0.00034793,2]
[377258426,1754307047389,-153.63079156,0.00034793,2]
[377258428,1754307047399,-508.57,0.00034793,2]
[377258430,1754307047408,-460.0,0.00034793,2]
[377258432,1754307047418,-379.14197908,0.00034793,2]